fUSD/lending_fUSD_20240125
["ID","MTS","AMOUNT","RATE_DAILY","PERIOD"]
[312676519,1706142716472,-446.88709154,0.00052876,31]
[312676520,1706142716482,-748.16,0.00052876,31]
[312676521,1706142716491,-536.66,0.00052876,31]
[312676522,1706142716501,-500.0,0.00052876,31]
[312676523,1706142716511,-655.7,0.00052876,31]
[312676524,1706142716521,-937.73,0.00052876,2]
[312676525,1706142716531,-678.69,0.00052876,31]
[312676526,1706142716541,-500.0,0.00052876,31]
[312676527,1706142716550,-764.66,0.00052876,31]
[312676528,1706142716560,-500.0,0.00052876,31]
[312676529,1706142716570,-673.27,0.00052876,31]
[312676530,1706142716580,-820.44,0.00052876,31]
[312676531,1706142716590,-797.85,0.00052876,31]
[312676532,1706142716600,-500.0,0.00052876,31]
[312676533,1706142716610,-500.0,0.00052876,31]
[312676534,1706142716619,-500.0,0.00052876,31]
[312676535,1706142716629,-618.86,0.00052876,31]
[312676536,1706142716638,-515.5,0.00052876,31]
[312676537,1706142716647,-500.0,0.00052876,31]
[312676538,1706142716657,-792.67,0.00052876,31]
[312676539,1706142716666,-717.84,0.00052876,31]
[312676540,1706142716676,-1129.79,0.00052876,31]
[312676541,1706142716686,-500.0,0.00052876,31]
[312676542,1706142716696,-510.96,0.00052876,31]
[312676543,1706142716706,-600.26,0.00052876,31]
[312676544,1706142716716,-689.9,0.00052876,31]
[312676545,1706142716726,-594.93,0.00052876,2]
[312676546,1706142716736,-738.6,0.00052876,31]
[312676547,1706142716746,-724.18,0.00052876,31]
[312676548,1706142716755,-757.86,0.00052876,2]
[312676549,1706142716765,-754.82,0.00052876,31]
[312676550,1706142716775,-1187.72,0.00052876,31]
[312676551,1706142716785,-500.0,0.00052876,31]
[312676552,1706142716794,-500.0,0.00052876,31]
[312676553,1706142716804,-1281.32,0.00052876,31]
[312676554,1706142716818,-706.0,0.0005289,2]
[312676555,1706142716827,-168.0,0.0005289,2]
[312676556,1706142716837,-487.42349504,0.00052897,60]
[312676557,1706142716847,-210.0,0.000529,40]
[312676558,1706142716858,-400.0,0.000529,19]
[312676559,1706142716868,-967.89520667,0.000529,14]
[312676560,1706142716877,-967.89520667,0.000529,14]
[312676561,1706142716887,-967.89520667,0.000529,14]
[312676562,1706142716897,-967.89520667,0.000529,14]
[312676563,1706142716906,-967.89520667,0.000529,14]
[312676564,1706142716916,-967.89520667,0.000529,14]
[312676565,1706142716926,-967.89520667,0.000529,14]
[312676566,1706142716935,-967.89520667,0.000529,14]
[312676567,1706142716944,-967.89520667,0.000529,14]
[312676568,1706142716954,-967.89520667,0.000529,14]
[312676569,1706142716964,-967.89520667,0.000529,14]
[312676570,1706142716973,-967.89520667,0.000529,14]
[312676571,1706142716983,-967.89520667,0.000529,14]
[312676572,1706142716993,-967.89520667,0.000529,14]
[312676573,1706142717003,-967.89520667,0.000529,14]
[312676574,1706142717012,-967.89520667,0.000529,14]
[312676575,1706142717022,-967.89520667,0.000529,14]
[312676576,1706142717031,-967.89520667,0.000529,14]
[312676577,1706142717041,-967.89520667,0.000529,14]
[312676578,1706142717051,-967.89,0.000529,14]
[312676579,1706142717060,-394.81616979,0.000529,14]
[312676580,1706142717070,-394.81616979,0.000529,14]
[312676581,1706142717080,-394.81616979,0.000529,14]
[312676582,1706142717089,-394.81616979,0.000529,14]
[312676583,1706142717099,-394.81616979,0.000529,14]
[312676584,1706142717109,-394.81616979,0.000529,14]
[312676585,1706142717118,-394.81616979,0.000529,14]
[312676586,1706142717127,-394.81616979,0.000529,14]
[312676587,1706142717137,-394.81616979,0.000529,14]
[312676588,1706142717147,-394.81616979,0.000529,14]
[312676589,1706142717158,-394.81616979,0.000529,14]
[312676590,1706142717168,-394.81616979,0.000529,14]
[312676591,1706142717178,-394.81616979,0.000529,14]
[312676592,1706142717188,-394.81616979,0.000529,14]
[312676593,1706142717198,-394.81616979,0.000529,14]
[312676594,1706142717208,-394.81616979,0.000529,14]
[312676595,1706142717217,-394.81616979,0.000529,14]
[312676596,1706142717227,-394.81616979,0.000529,14]
[312676597,1706142717237,-394.81616979,0.000529,14]
[312676598,1706142717247,-394.81,0.000529,14]
[312676599,1706142717256,-632.20810468,0.000529,14]
[312676600,1706142717265,-632.20810468,0.000529,14]
[312676601,1706142717274,-632.20810468,0.000529,14]
[312676602,1706142717284,-632.20810468,0.000529,14]
[312676603,1706142717293,-632.20810468,0.000529,14]
[312676604,1706142717303,-632.20810468,0.000529,14]
[312676605,1706142717312,-632.20810468,0.000529,14]
[312676606,1706142717320,-632.20810468,0.000529,14]
[312676607,1706142717330,-632.20810468,0.000529,14]
[312676608,1706142717339,-632.20810468,0.000529,14]
[312676609,1706142717352,-632.20810468,0.000529,14]
[312676610,1706142717363,-632.20810468,0.000529,14]
[312676611,1706142717372,-632.20810468,0.000529,14]
[312676612,1706142717382,-632.20810468,0.000529,14]
[312676613,1706142717392,-632.20810468,0.000529,14]
[312676614,1706142717401,-632.20810468,0.000529,14]
[312676615,1706142717411,-632.20810468,0.000529,14]
[312676616,1706142717420,-632.20810468,0.000529,14]
[312676617,1706142717430,-632.20810468,0.000529,14]
[312676618,1706142717440,-632.2,0.000529,14]
[312676619,1706142717450,-793.31227869,0.000529,14]
[312676620,1706142717459,-793.31227869,0.000529,14]
[312676621,1706142717469,-793.31227869,0.000529,14]
[312676622,1706142717478,-793.31227869,0.000529,14]
[312676623,1706142717488,-793.31227869,0.000529,14]
[312676624,1706142717497,-793.31227869,0.000529,14]
[312676625,1706142717507,-793.31227869,0.000529,14]
[312676626,1706142717516,-793.31227869,0.000529,14]
[312676627,1706142717535,-793.31227869,0.000529,14]
[312676628,1706142717555,-793.31227869,0.000529,14]
[312676629,1706142717573,-793.31227869,0.000529,14]
[312676630,1706142717596,-793.31227869,0.000529,14]
[312676631,1706142717612,-793.31227869,0.000529,14]
[312676632,1706142717630,-793.31227869,0.000529,14]
[312676633,1706142717651,-793.31227869,0.000529,14]
[312676634,1706142717666,-793.31227869,0.000529,14]
[312676635,1706142717687,-793.31227869,0.000529,14]
[312676636,1706142717703,-793.31227869,0.000529,14]
[312676637,1706142717722,-793.31227869,0.000529,14]
[312676638,1706142717742,-793.31,0.000529,14]
[312676639,1706142717755,-700.0870837,0.000529,14]
[312676640,1706142717771,-700.0870837,0.000529,14]
[312676641,1706142717786,-700.0870837,0.000529,14]
[312676642,1706142717804,-700.0870837,0.000529,14]
[312676643,1706142717821,-700.0870837,0.000529,14]
[312676644,1706142717836,-700.0870837,0.000529,14]
[312676645,1706142717851,-700.0870837,0.000529,14]
[312676646,1706142717867,-700.0870837,0.000529,14]
[312676647,1706142717882,-700.0870837,0.000529,14]
[312676648,1706142717898,-700.0870837,0.000529,14]
[312676649,1706142717913,-700.0870837,0.000529,14]
[312676650,1706142717928,-700.0870837,0.000529,14]
[312676651,1706142717942,-700.0870837,0.000529,14]
[312676652,1706142717957,-700.0870837,0.000529,14]
[312676653,1706142717973,-700.0870837,0.000529,14]
[312676654,1706142717987,-700.0870837,0.000529,14]
[312676655,1706142718002,-700.0870837,0.000529,14]
[312676656,1706142718016,-700.0870837,0.000529,14]
[312676657,1706142718032,-700.0870837,0.000529,14]
[312676658,1706142718052,-700.08,0.000529,14]
[312676659,1706142718073,-150.0,0.00052902,7]
[312676660,1706142718091,-150.0,0.00052908,7]
[312676661,1706142718109,-65809.0,0.0005292,30]
[312676662,1706142718130,-156.43151779,0.00052922,60]
[312676663,1706142718147,-150.37716717,0.00052922,60]
[312676664,1706142718165,-150.0,0.00052927,7]
[312676665,1706142718182,-150.0,0.00052931,7]
[312676666,1706142718198,-150.0,0.00052948,7]
[312676667,1706142718215,-150.0,0.00052958,7]
[312676668,1706142718231,-1328.9762417,0.00052964,2]
[312676669,1706142718247,-1331.4283258,0.00052964,2]
[312676670,1706142718262,-392.16327829,0.00052967,60]
[312676671,1706142718279,-250.0,0.0005297,7]
[312676672,1706142718294,-200.0,0.0005297,7]
[312676673,1706142718308,-205.0,0.00052971,20]
[312676674,1706142718324,-4457043.00217115,0.00052987,60]
[312676675,1706142718988,-943155.15376376,0.00052987,60]
[312676676,1706142719007,-554014.11601151,0.00052987,60]
[312676677,1706142719025,-1581.061535,0.00052987,60]
[312676678,1706142719075,-152.36,0.000475,5]
[312676679,1706142719090,-556.66,0.00049589,31]
[312676680,1706142719106,-693.29,0.0005041,31]
[312676681,1706142719121,-2728.94,0.00052876,31]
[312676682,1706142719135,-2774.42645439,0.00052987,60]
[312676683,1706142719155,-1916.48685601,0.00052987,60]
[312676684,1706142719179,-152.36,0.000475,5]
[312676685,1706142719194,-21029.88998651,0.00052987,60]
[312676686,1706142719212,-43241.92339477,0.00052987,60]
[312676687,1706142719230,-3345.75912601,0.00052987,60]
[312676688,1706142719249,-475.57638095,0.00052987,60]
[312676689,1706142719266,-2108.05622372,0.00052987,60]
[312676690,1706142719309,-500.0,0.00049315,10]
[312676691,1706142719324,-500.0,0.00049315,31]
[312676692,1706142719346,-606.70110647,0.00052987,60]
[312676693,1706142719364,-788.89410348,0.00052987,60]
[312676694,1706142719395,-152.36,0.000475,5]
[312676695,1706142719661,-43486.13030465,0.00052987,60]
[312676696,1706142719675,-308.46,0.00052987,60]
[312676697,1706142719686,-3804.15434137,0.00052987,60]
[312676698,1706142720491,-214.425,0.00033974,2]
[312676699,1706142720500,-1233.0,0.00033974,2]
[312676700,1706142720510,-152.36,0.000475,5]
[312676701,1706142720519,-152.36,0.000475,5]
[312676702,1706142720528,-152.36,0.000475,5]
[312676703,1706142720538,-152.36,0.000475,5]
[312676704,1706142720547,-152.36,0.000475,5]
[312676705,1706142720557,-152.36,0.000475,5]
[312676706,1706142720566,-152.36,0.000475,5]
[312676707,1706142720577,-152.36,0.000475,5]
[312676708,1706142720586,-150.0,0.00048647,2]
[312676709,1706142720597,-150.0,0.00048647,2]
[312676710,1706142720610,-500.0,0.00049315,31]
[312676711,1706142720620,-498.195,0.00049315,31]
[312676712,1706142720649,-1.805,0.00049315,31]
[312676713,1706142720659,-500.0,0.00049315,31]
[312676714,1706142720668,-498.195,0.00049315,31]
[312676715,1706142720687,-1.805,0.00049315,31]
[312676716,1706142720696,-500.0,0.00049315,31]
[312676717,1706142720706,-525.26936077,0.00049589,31]
[312676718,1706142720715,-500.0,0.00049589,10]
[312676719,1706142720725,-500.0,0.00049589,31]
[312676720,1706142720735,-500.0,0.00049589,31]
[312676721,1706142720744,-500.0,0.00049589,31]
[312676722,1706142720754,-500.0,0.00049589,31]
[312676723,1706142720764,-556.66,0.00049863,31]
[312676724,1706142720773,-500.0,0.00049863,10]
[312676725,1706142720783,-500.0,0.00049863,31]
[312676726,1706142720794,-500.0,0.00049863,31]
[312676727,1706142720804,-500.0,0.00049863,31]
[312676728,1706142720816,-500.0,0.00049863,31]
[312676729,1706142720827,-556.66,0.00050136,31]
[312676730,1706142720837,-395.74383512,0.00050136,10]
[312676731,1706142720853,-104.25616488,0.00050136,10]
[312676732,1706142720863,-500.0,0.00050136,31]
[312676733,1706142720873,-500.0,0.00050136,31]
[312676734,1706142720883,-500.0,0.00050136,31]
[312676735,1706142720895,-500.0,0.00050136,31]
[312676736,1706142720905,-556.66,0.0005041,31]
[312676737,1706142720915,-500.0,0.0005041,10]
[312676738,1706142720924,-500.0,0.0005041,31]
[312676739,1706142720934,-500.0,0.0005041,31]
[312676740,1706142720943,-500.0,0.0005041,31]
[312676741,1706142720953,-693.29,0.00050684,31]
[312676742,1706142720963,-556.66,0.00050684,31]
[312676743,1706142720973,-500.0,0.00050684,10]
[312676744,1706142720982,-500.0,0.00050684,31]
[312676745,1706142720992,-693.29,0.00050958,31]
[312676746,1706142721002,-556.66,0.00050958,31]
[312676747,1706142721011,-500.0,0.00050958,10]
[312676748,1706142721020,-286.40262985,0.00050958,31]
[312676749,1706142721033,-213.59737015,0.00050958,31]
[312676750,1706142721043,-693.29,0.00051232,31]
[312676751,1706142721052,-556.66,0.00051232,31]
[312676752,1706142721061,-176.07466078,0.00051232,10]
[312676753,1706142721071,-500.0,0.00051232,31]
[312676754,1706142721081,-693.29,0.00051506,31]
[312676755,1706142721090,-556.66,0.00051506,31]
[312676756,1706142721101,-500.0,0.00051506,31]
[312676757,1706142721111,-152.36,0.000517,7]
[312676758,1706142721121,-152.36,0.000517,7]
[312676759,1706142721131,-152.36,0.000517,7]
[312676760,1706142721141,-152.36,0.000517,7]
[312676761,1706142721150,-152.36,0.000517,7]
[312676762,1706142721161,-152.36,0.000517,7]
[312676763,1706142721171,-152.36,0.000517,7]
[312676764,1706142721180,-152.36,0.000517,7]
[312676765,1706142721190,-152.36,0.000517,7]
[312676766,1706142721202,-152.36,0.000517,7]
[312676767,1706142721213,-152.36,0.000517,7]
[312676768,1706142721223,-152.36,0.000517,7]
[312676769,1706142721232,-152.36,0.000517,7]
[312676770,1706142721242,-152.36,0.000517,7]
[312676771,1706142721251,-152.36,0.000517,7]
[312676772,1706142721260,-152.36,0.000517,7]
[312676773,1706142721270,-152.36,0.000517,7]
[312676774,1706142721279,-152.36,0.000517,7]
[312676775,1706142721288,-152.36,0.000517,7]
[312676776,1706142721298,-152.36,0.000517,7]
[312676777,1706142721317,-693.29,0.0005178,31]
[312676778,1706142721329,-556.66,0.0005178,31]
[312676779,1706142721339,-500.0,0.0005178,31]
[312676780,1706142721350,-257.06183369,0.00052054,31]
[312676781,1706142721363,-436.22816631,0.00052054,31]
[312676782,1706142721373,-556.66,0.00052054,31]
[312676783,1706142721383,-557.24,0.00052328,31]
[312676784,1706142721393,-693.29,0.00052328,31]
[312676785,1706142721403,-556.66,0.00052328,31]
[312676786,1706142721413,-557.24,0.00052602,31]
[312676787,1706142721422,-693.29,0.00052602,31]
[312676788,1706142721432,-557.24,0.00052876,31]
[312676789,1706142721442,-693.29,0.00052876,31]
[312676790,1706142721451,-604.11822225,0.00052987,60]
[312676791,1706142721462,-153.21386405,0.00052996,60]
[312676792,1706142721472,-2205.37187775,0.00052997,2]
[312676793,1706142721482,-300.02,0.00052999,2]
[312676794,1706142721491,-513.68653116,0.00052999,2]
[312676795,1706142721519,-2786.6204582,0.00052999,2]
[312676796,1706142721530,-6157.21977669,0.00053,120]
[312676797,1706142721551,-500.0,0.00052054,31]
[312676798,1706142721561,-871.50084995,0.00053,120]
[312676799,1706142721573,-470.89908542,0.00053,120]
[312676800,1706142721585,-406.83149975,0.00053,120]
[312676801,1706142721596,-602.11,0.00053,120]
[312676802,1706142721818,-150.0,0.00048647,2]
[312676803,1706142721828,-150.0,0.00048647,2]
[312676804,1706142721838,-500.0,0.00049315,31]
[312676805,1706142721852,-500.0,0.00049589,31]
[312676806,1706142721862,-500.0,0.00049863,31]
[312676807,1706142721872,-500.0,0.00050136,31]
[312676808,1706142721882,-210.86,0.0005041,31]
[312676809,1706142721893,-500.0,0.0005041,31]
[312676810,1706142721903,-500.0,0.00050684,31]
[312676811,1706142721914,-500.0,0.00050958,31]
[312676812,1706142721924,-500.0,0.00051232,31]
[312676813,1706142721934,-500.0,0.00051506,31]
[312676814,1706142721944,-289.97456276,0.0005178,31]
[312676815,1706142721954,-500.0,0.00052328,31]
[312676816,1706142721964,-556.66,0.00052602,31]
[312676817,1706142721974,-500.0,0.00052602,31]
[312676818,1706142721984,-556.66,0.00052876,31]
[312676819,1706142721994,-500.0,0.00052876,31]
[312676820,1706142722004,-387284.45540735,0.00053,120]
[312676821,1706142722018,-4369.5771668,0.00053,120]
[312676822,1706142722048,-624.04,0.00050684,31]
[312676823,1706142722057,-3640.96,0.00053,120]
[312676824,1706142722971,-294.74,0.00048647,2]
[312676825,1706142722981,-82.86776255,0.00048647,2]
[312676826,1706142722992,-209.35223745,0.00048647,2]
[312676827,1706142723002,-150.0,0.00048647,2]
[312676828,1706142723011,-150.0,0.00048647,2]
[312676829,1706142723021,-168.18,0.00048647,2]
[312676830,1706142723030,-150.0,0.00048647,2]
[312676831,1706142723040,-942.71,0.00048647,2]
[312676832,1706142723049,-114.85926214,0.00048647,2]
[312676833,1706142723063,-177.36073786,0.00048647,2]
[312676834,1706142723072,-409.13,0.00048647,2]
[312676835,1706142723082,-294.74,0.00048647,2]
[312676836,1706142723091,-419.04,0.00048647,2]
[312676837,1706142723100,-942.71,0.00048647,2]
[312676838,1706142723110,-402.31,0.00048647,2]
[312676839,1706142723120,-150.0,0.00048647,2]
[312676840,1706142723129,-500.0,0.00049315,31]
[312676841,1706142723139,-500.0,0.00049315,31]
[312676842,1706142723148,-500.0,0.00049315,31]
[312676843,1706142723157,-500.0,0.00049315,31]
[312676844,1706142723167,-500.0,0.00049315,31]
[312676845,1706142723176,-500.0,0.00049315,31]
[312676846,1706142723186,-539.925286,0.00049315,31]
[312676847,1706142723195,-500.0,0.00049315,31]
[312676848,1706142723205,-531.47563604,0.00049315,31]
[312676849,1706142723214,-159.32,0.000494,30]
[312676850,1706142723223,-500.0,0.00049589,31]
[312676851,1706142723234,-500.0,0.00049589,31]
[312676852,1706142723245,-500.0,0.00049589,31]
[312676853,1706142723254,-500.0,0.00049589,31]
[312676854,1706142723264,-500.0,0.00049589,31]
[312676855,1706142723273,-500.0,0.00049589,31]
[312676856,1706142723283,-500.0,0.00049863,31]
[312676857,1706142723292,-500.0,0.00049863,31]
[312676858,1706142723302,-500.0,0.00049863,31]
[312676859,1706142723312,-500.0,0.00049863,31]
[312676860,1706142723321,-649.92,0.00049863,31]
[312676861,1706142723331,-606.28,0.00050136,31]
[312676862,1706142723340,-500.0,0.00050136,31]
[312676863,1706142723350,-500.0,0.00050136,31]
[312676864,1706142723359,-500.0,0.00050136,31]
[312676865,1706142723369,-500.0,0.0005041,31]
[312676866,1706142723378,-2526.98770555,0.00053,120]
[312676867,1706142723398,-150.0,0.00048647,2]
[312676868,1706142723408,-500.0,0.0005041,31]
[312676869,1706142723417,-16545.4920001,0.00053,120]
[312676870,1706142723451,-500.0,0.00049315,31]
[312676871,1706142723461,-500.0,0.00049863,31]
[312676872,1706142723470,-500.0,0.0005041,31]
[312676873,1706142723479,-500.0,0.00050684,31]
[312676874,1706142723489,-6688.52174634,0.00053,120]
[312676875,1706142723522,-500.0,0.00050684,31]
[312676876,1706142723531,-599.54952,0.00053,120]
[312676877,1706142733539,970.1549,0.00021531,2]
[312676878,1706142736347,245000.0,0.0002159,2]
[312676879,1706142737083,350.6257,0.0002159,2]
[312676880,1706142737826,289.664,0.00021531,2]
[312676881,1706142738409,319.09945817,0.00021588,2]
[312676882,1706142740651,3008.52191293,0.00021588,2]
[312676885,1706143477609,-800.0,0.00021689,5]
[312676898,1706143831855,-200.0,0.00021689,5]
[312676899,1706143831865,-169.43458277,0.00021689,2]
[312676900,1706143831874,-169.43458277,0.00021689,2]
[312676901,1706143831884,-194.67447277,0.00027395,2]
[312676902,1706143831895,-814.15802409,0.00027395,2]
[312676903,1706143831907,-1774.98050123,0.00027395,2]
[312676904,1706143831917,-500.0,0.00027396,2]
[312676905,1706143831926,-161.25,0.00027397,2]
[312676906,1706143831937,-150.0,0.00027616,2]
[312676907,1706143831946,-161.25,0.00027895,2]
[312676908,1706143831956,-361.98,0.00028394,2]
[312676909,1706143831965,-499.99,0.00028394,2]
[312676910,1706143831974,-659.63244524,0.00028394,2]
[312676911,1706143831986,-35.75755476,0.00028394,2]
[312676912,1706143831996,-161.25,0.00028394,2]
[312676913,1706143832007,-161.25,0.00028892,2]
[312676914,1706143832016,-161.25,0.0002939,2]
[312676915,1706143832026,-161.25,0.00029888,2]
[312676916,1706143832035,-155.0,0.00030385,2]
[312676917,1706143832045,-161.25,0.00030386,2]
[312676918,1706143832055,-161.25,0.00030884,2]
[312676919,1706143832064,-163.34614167,0.00031169,2]
[312676920,1706143832074,-161.25,0.00031382,2]
[312676921,1706143832083,-171.57,0.00031389,2]
[312676922,1706143832093,-161.25,0.0003188,2]
[312676923,1706143832102,-74.39774905,0.00032379,2]
[312676924,1706143832114,-86.85225095,0.00032379,2]
[312676925,1706143832124,-161.25,0.00032877,2]
[312676927,1706143832134,-163.34614167,0.00032925,2]
[312676929,1706143832143,-173.99,0.00033173,2]
[312676931,1706143832154,-250.0,0.00033175,111]
[312676933,1706143832164,-69.16050807,0.00033225,2]
[312676936,1706143832180,-311.06238185,0.00033225,2]
[312676937,1706143832192,-619.77711008,0.00033225,2]
[312676940,1706143832202,-151.3,0.00033265,15]
[312676942,1706143832211,-197.89618233,0.00033265,2]
[312676944,1706143832223,-52.10381767,0.00033265,2]
[312676946,1706143832232,-250.0,0.00033347,2]
[312676948,1706143832241,-204.1,0.00033354,2]
[312676950,1706143832250,-108.27575733,0.00033431,2]
[312676952,1706143832263,-1891.72424267,0.00033431,2]
[312676953,1706143832271,-821.94,0.00033602,2]
[312676954,1706143832280,-171.57,0.00033653,2]
[312676955,1706143832290,-1000.0,0.00034547,4]
[312676956,1706143832298,-150.0,0.00034548,10]
[312676958,1706143832308,-152.91,0.000346,2]
[312676959,1706143832317,-152.91,0.000346,2]
[312676960,1706143832326,-152.91,0.000346,2]
[312676961,1706143832335,-152.91,0.000346,2]
[312676962,1706143832344,-152.91,0.000346,2]
[312676963,1706143832354,-152.91,0.000346,2]
[312676964,1706143832363,-152.91,0.000346,2]
[312676965,1706143832371,-152.91,0.000346,2]
[312676966,1706143832381,-152.91,0.000346,2]
[312676967,1706143832390,-152.91,0.000346,2]
[312676968,1706143832399,-152.91,0.000346,2]
[312676969,1706143832408,-152.91,0.000346,2]
[312676970,1706143832417,-152.91,0.000346,2]
[312676971,1706143832426,-152.91,0.000346,2]
[312676972,1706143832435,-152.91,0.000346,2]
[312676973,1706143832444,-152.91,0.000346,2]
[312676974,1706143832453,-163.34614167,0.00034682,2]
[312676975,1706143832462,-1261.86346022,0.00035,4]
[312676976,1706143832472,-154.98,0.00035174,2]
[312676977,1706143832481,-547.96,0.00035711,2]
[312676978,1706143832491,-171.57,0.00035917,2]
[312676979,1706143832500,-154.98,0.00036091,2]
[312676980,1706143832510,-673.21957904,0.00036375,2]
[312676981,1706143832524,-464.78042096,0.00036375,2]
[312676982,1706143832535,-150.0,0.00036375,2]
[312676983,1706143832546,-250.0,0.00036375,2]
[312676984,1706143832556,-150.0,0.00036375,2]
[312676985,1706143832567,-157.139,0.00036375,2]
[312676986,1706143832576,-153.974,0.00036375,2]
[312676987,1706143832586,-162.997,0.00036375,2]
[312676988,1706143832595,-151.0,0.00036375,2]
[312676989,1706143832604,-151.0,0.00036375,2]
[312676990,1706143832613,-259.764,0.00036375,2]
[312676991,1706143832783,-153.85,0.00036431,2]
[312676992,1706143832800,-163.34614167,0.00036438,2]
[312676993,1706143832809,-180.0,0.00036485,2]
[312676994,1706143832818,-154.98,0.00037007,2]
[312676995,1706143832827,-1000.0,0.00037378,2]
[312676996,1706143832836,-300.0,0.00037899,2]
[312676997,1706143832845,-300.0,0.00037899,2]
[312676998,1706143832854,-300.0,0.00037899,2]
[312676999,1706143832863,-300.0,0.00037899,2]
[312677000,1706143832872,-300.0,0.00037899,2]
[312677001,1706143832880,-300.0,0.00037899,2]
[312677002,1706143832889,-300.0,0.00037899,2]
[312677003,1706143832898,-300.0,0.00037899,2]
[312677004,1706143832907,-171.57,0.0003818,2]
[312677005,1706143832916,-163.34614167,0.00038195,2]
[312677006,1706143832925,-204.1,0.0003829,2]
[312677007,1706143832934,-1000.0,0.00038313,2]
[312677008,1706143832943,-150.0,0.00038356,2]
[312677009,1706143832952,-2458.203,0.00038403,2]
[312677010,1706143832961,-1599.287,0.00038403,2]
[312677011,1706143832970,-1970.1526,0.00038403,2]
[312677012,1706143832978,-1171.91,0.00038406,2]
[312677013,1706143832987,-1171.91,0.00038406,2]
[312677014,1706143832996,-1171.91,0.00038406,2]
[312677015,1706143833008,-1171.91,0.00038406,2]
[312677016,1706143833017,-1171.91,0.00038406,2]
[312677017,1706143833026,-1171.91,0.00038406,2]
[312677018,1706143833035,-1171.91,0.00038406,2]
[312677019,1706143833043,-1171.91,0.00038406,2]
[312677020,1706143833052,-1171.91,0.00038406,2]
[312677021,1706143833062,-1171.91,0.00038406,2]
[312677022,1706143833071,-174019.82159022,0.00038407,2]
[312677023,1706143833080,-2116.1261,0.00038414,2]
[312677024,1706143833089,-1405.4099,0.00038414,2]
[312677025,1706143833099,-247.31941885,0.0003849,2]
[312677026,1706143833108,-189545.61552925,0.000385,2]
[312677027,1706143833124,-56212.2143784,0.000385,2]
[312677028,1706143833135,-1012.92672215,0.000385,2]
[312677029,1706143833146,-318.4195,0.000385,2]
[312677030,1706143833165,-6429.73131915,0.000385,2]
[312677031,1706143833177,-96628.34543819,0.000385,2]
[312677032,1706143833188,-62488.72809525,0.000385,2]
[312677033,1706143833198,-1790.22,0.00038512,5]
[312677034,1706143833207,-1832.19,0.00038512,5]
[312677035,1706143833217,-1834.27,0.00038512,5]
[312677036,1706143833225,-220.57220117,0.00038512,4]
[312677037,1706143833235,-428.73247739,0.00038512,2]
[312677038,1706143833247,-4042.15995979,0.00038512,9]
[312677039,1706143833259,-10569.52280735,0.00038513,2]
[312677040,1706143833268,-6344.0,0.00038515,30]
[312677041,1706143833277,-6344.0,0.00038515,60]
[312677042,1706143833287,-1787.88,0.00038515,5]
[312677043,1706143833296,-1811.83,0.00038515,5]
[312677044,1706143833305,-1779.98,0.00038515,5]
[312677045,1706143833314,-1801.85,0.00038515,5]
[312677046,1706143833323,-1789.76,0.00038515,5]
[312677047,1706143833333,-1821.23,0.00038515,5]